Cogmind - Beta 14 @@@ ROGUE MODE // 2024.08.14 @ 18:34:55 Player: Lunace Result: Destroyed by 2S-6PM(R) with Subdweller Beam Cannon Performance ------------- Evolutions (0) 0 Regions Visited (2) 400 Robots Destroyed (16) 80 Value Destroyed (446) 446 Prototype IDs (0) 0 Alien Tech Used (0) 0 Bonus (0) 0 TOTAL SCORE: 926 Bonus ------- None Cogmind --------- Core Integrity 0/250 Matter 285/300 Energy 185/200 System Corruption 0% Temperature Cool (9) Movement Treading (160) Location -10/Subcaves Parts ------- > --- POWER (1) -------- Subdweller Power Source > --- PROPULSION (2) --- Light Treads Light Treads > --- UTILITY (2) ------ Medium Storage Unit Makeshift Light Armor Plating > --- WEAPON (2) ------- Battle Cannon Battle Cannon > --- INVENTORY (10) --- Subdweller Power Source Subdweller Power Source Light Armor Plating Subdweller Laser Subdweller Laser Subdweller Beam Cannon Battle Rifle Subdweller Machine Gun Subdweller Machine Gun Peak State ------------ > --- POWER ------------ Subdweller Power Source > --- PROPULSION ------- Light Treads Light Treads > --- UTILITY ---------- Medium Storage Unit Makeshift Light Armor Plating > --- WEAPON ----------- Subdweller Beam Cannon Battle Cannon > --- INVENTORY -------- Light Ion Engine Light Treads Disposable Heat Sink Subdweller Laser Subdweller Laser Subdweller Beam Cannon Assault Rifle Battle Rifle [Rating: 14] Favorites ----------- Power Ion Engine Engine Ion Engine Propulsion Light Treads Treads Light Treads Utility Medium Storage Unit Device Seismic Detector Storage Medium Storage Unit Protection Makeshift Light Armor Plating Weapon Assault Rifle Energy Gun EM Pulse Gun Energy Cannon Subdweller Beam Cannon Ballistic Gun Assault Rifle Ballistic Cannon Battle Cannon Launcher Subdweller Shrapnel Launcher Build | -11 -10 -10 ------- Run | Yrd Mat Sub Slots Evolved . | . . . Power . | . . . Propulsion . | . . . Utility . | . . . Weapon . | . . . Parts Attached 23 | 6 2 15 Power 3 | 1 . 2 Engine 3 | 1 . 2 Core . | . . . Reactor . | . . . Propulsion 4 | 2 . 2 Treads 4 | 2 . 2 Leg . | . . . Wheel . | . . . Hover . | . . . Flight . | . . . Utility 4 | 2 1 1 Device 1 | 1 . . Storage 2 | 1 1 . Processor . | . . . Hackware . | . . . Protection 1 | . . 1 Artifact . | . . . Weapon 12 | 1 1 10 Energy Gun 2 | . 1 1 Energy Cannon 2 | . . 2 Ballistic Gun 4 | 1 . 3 Ballistic Cannon 2 | . . 2 Launcher 2 | . . 2 Special Weapon . | . . . Impact Weapon . | . . . Slashing Weapon . | . . . Piercing Weapon . | . . . Special Melee Weapon . | . . . Unidentified Prototypes . | . . . Parts Lost 5 | . . 5 Power 1 | . . 1 Propulsion 1 | . . 1 Utility . | . . . Weapon 3 | . . 3 Highest Loss Streak 5 | . . 5 To Critical Strikes . | . . . Average Slot Usage (%) 99 | . 97 99 Engine 13 | . 14 13 Treads 27 | . 28 27 Device 11 | . 14 10 Storage 14 | . 14 14 Protection 2 | . . 3 Energy Gun 5 | . 12 3 Energy Cannon 5 | . . 6 Ballistic Gun 13 | . 14 13 Ballistic Cannon 1 | . . 2 Launcher 1 | . . 1 Peak Build Rating 14 | 6 7 14 Average Rating 8 | 4 6 9 On Entrance 4 | . 6 7 Naked Turns . | . . . Heaviest Build 35 | 13 20 35 Greatest Support 40 | 40 40 40 Greatest Overweight (x) . | . . . Average Overweight (x) . | . . . Largest Inventory Capacity 10 | 8 10 10 Average Capacity 9 | 7 9 10 Most Carried 10 | 2 6 10 Average Carried 6 | 1 5 7 Final Capacity 10 | 8 10 10 Final Carried 9 | 2 6 9 Class Distribution -------------------- 83% | Mutant 16% | Scavenger-Mutant Dominant Class ---------------- Mutant | -10/Materials Mutant | -10/Subcaves Resources | -11 -10 -10 ----------- Run | Yrd Mat Sub Matter Collected 750 | 258 64 428 Remotely . | . . . Salvage Created 462 | 32 118 312 Parts 32 | 4 7 21 Haulers Intercepted 1 | . 1 . Recyclers Shooed . | . . . Parts Field Recycled . | . . . Retrieved Matter . | . . . Parts Self-Destructed 14 | . . 14 Prevented . | . . . Kills | -11 -10 -10 ------- Run | Yrd Mat Sub Combat Hostiles Destroyed 12 | . 1 11 Guns 5 | . 1 4 Cannons 6 | . . 6 AOE 1 | . . 1 Classes Destroyed 6 | 1 3 2 Tunneler 2 | 2 . . Hauler 1 | . 1 . Watcher 1 | . 1 . Swarmer 2 | . . 2 Grunt 1 | . 1 . Subdweller 9 | . . 9 Best Kill Streak 2 | 2 2 2 Combat Bots Only 2 | . 1 2 Max Kills in Single Turn 1 | 1 1 1 Gunslinging . | . . . Exploded 1 | . . 1 Melee . | . . . Uniques/NPCs Destroyed . | . . . Combat | -11 -10 -10 -------- Run | Yrd Mat Sub Hostile Shots Fired 63 | . 3 60 Missed 16 | . 3 13 Damage Taken 1070 | . . 1070 Core 277 | . . 277 Absorbed by Shields . | . . . Core Remaining (%) 100 | 100 . . Volleys Fired 89 | 8 6 75 Largest 2 | 1 2 2 Hottest 160 | 20 60 160 Shots Fired 140 | 8 11 121 Gun 66 | 8 11 47 Cannon 65 | . . 65 Launcher 9 | . . 9 Special . | . . . Kinetic 70 | 8 6 56 Thermal 60 | . . 60 Explosive . | . . . Electromagnetic 10 | . 5 5 Robot Hit Streak 26 | 4 3 26 Robot Miss Streak 2 | 2 1 2 Penetration Max . | . . . Secondary Targets . | . . . Shots Hit Robots 76 | 5 8 63 Core Hits 25 | 2 4 19 Critical Kills . | . . . Critical Parts Destroyed . | . . . Critical Strikes . | . . . Melee Attacks . | . . . Impact . | . . . Slashing . | . . . Piercing . | . . . Sneak Attacks . | . . . Combat Hostiles . | . . . Follow-up Attacks . | . . . Damage Inflicted 1603 | 71 114 1418 Guns 723 | 71 114 538 Cannons 506 | . . 506 Explosions 374 | . . 374 Melee . | . . . Ramming . | . . . Kinetic 1062 | 71 68 923 Thermal 451 | . . 451 Explosive . | . . . Electromagnetic 90 | . 46 44 Impact . | . . . Slashing . | . . . Piercing . | . . . Highest Corruption . | . . . Average Corruption . | . . . Corruption Purged . | . . . Corruption Blocked . | . . . Overload Shots . | . . . Overflow Damage 48 | . . 48 Projectiles . | . . . Explosions 48 | . . 48 Melee . | . . . Knockbacks 2 | . . 2 Impact . | . . . Kinetic 2 | . . 2 Secondary . | . . . Self-Inflicted Damage 79 | . . 79 Shots 2 | . . 2 Rammed . | . . . Targets Rammed . | . . . Kicked . | . . . Crushed . | . . . Highest Temperature 259 | . . 259 Average Temperature 69 | . . 69 Received Heat Transfer 228 | . . 228 Siege Activations . | . . . Robots Corrupted . | . . . Combat Hostiles . | . . . Parts Fried . | . . . Impact Corruptions . | . . . Robots Melted . | . . . Combat Hostiles . | . . . Parts Melted . | . . . Heat Transferred 593 | . . 593 Parts Sabotaged . | . . . Parts Stolen . | . . . Parts Stripped . | . . . Power Chain Reactions . | . . . Alert | -11 -10 -10 ------- Run | Yrd Mat Sub Peak Influence 51 | 10 51 . Initial 6 | . 6 . Average 25 | 4 30 . Maximum Alert Level . | . . . Low Security (%) 100 | 100 100 . Level 1 . | . . . Level 2 . | . . . Level 3 . | . . . Level 4 . | . . . Level 5 . | . . . High Security . | . . . Max Security . | . . . Squads Dispatched . | . . . Investigation . | . . . Extermination . | . . . Reinforcement . | . . . Assault . | . . . Garrison . | . . . Intercept . | . . . Searches Triggered . | . . . Construction Impeded . | . . . Haulers Reinforced . | . . . Active Scanning Responses . | . . . Cargo Convoy Interrupts . | . . . Stealth | -11 -10 -10 --------- Run | Yrd Mat Sub Distress Signals 1 | . 1 . Communications Jammed . | . . . Distress Signals . | . . . Times Spotted 14 | . 2 12 Peak Tracking Total 2 | . 2 2 Tactical Retreats . | . . . Traps | -11 -10 -10 ------- Run | Yrd Mat Sub Traps Triggered 1 | . . 1 Indirectly . | . . . Trap Hack Attempts . | . . . Triggered . | . . . Disarmed . | . . . Reprogrammed . | . . . Reused . | . . . Traps Extracted . | . . . Installed . | . . . Triggered . | . . . Machines | -11 -10 -10 ---------- Run | Yrd Mat Sub Machines Disabled . | . . . Max in Single Turn . | . . . Machines Repaired . | . . . Machines Dismantled . | . . . Machines Sabotaged . | . . . Overloaded Fab Kills . | . . . Hacking | -11 -10 -10 --------- Run | Yrd Mat Sub Machines Accessed 4 | . 3 1 Terminals 1 | . 1 . Fabricators . | . . . Repair Stations . | . . . Recycling Units 2 | . 2 . Scanalyzers . | . . . Garrison Access . | . . . Total Hacks 14 | . 10 4 Successful 8 | . 4 4 Failed 6 | . 6 . Catastrophic 1 | . 1 . Database Lockouts . | . . . Manual 6 | . 6 . Terminals 6 | . 6 . Fabricators . | . . . Repair Stations . | . . . Recycling Units 4 | . 4 . Scanalyzers . | . . . Garrison Access . | . . . Terminal Hacks 4 | . . 4 Record 4 | . . 4 Fabricator Hacks . | . . . Repair Station Hacks . | . . . Recycling Unit Hacks 2 | . 2 . Retrieve Components 2 | . 2 . Scanalyzer . | . . . Garrison Access Hacks . | . . . Unauthorized Hacks 2 | . 2 . Terminals 2 | . 2 . Botnet 1 | . 1 . Operators 1 | . 1 . Fabricators . | . . . Repair Stations . | . . . Recycling Units . | . . . Scanalyzers . | . . . Garrison Access . | . . . Data Cores Recovered . | . . . Used . | . . . Hacking Detections 2 | . 2 . Full Trace Events . | . . . Feedback Events . | . . . Feedback Blocked . | . . . Robot Schematics Acquired . | . . . Robots Built . | . . . Authchips . | . . . Time . | . . . Total Robot Build Rating . | . . . Part Schematics Acquired . | . . . Parts Built . | . . . Authchips . | . . . Time . | . . . Total Part Build Rating . | . . . Parts Repaired . | . . . Time . | . . . Parts Recycled . | . . . Recycled Matter . | . . . Retrieved Matter . | . . . Retrieved Components 2 | . 2 . Parts Scanalyzed . | . . . Part Schematics Acquired . | . . . Parts Damaged . | . . . Bothacking | -11 -10 -10 ------------ Run | Yrd Mat Sub Used RIF Installer . | . . . Robots Hacked . | . . . Non-combat . | . . . Combat . | . . . Robot Hacks Applied . | . . . Relay Couplers Released . | . . . Fabnet Peak Effective % . | . . . Robots Rewired . | . . . Allies Hacked . | . . . Hacks Repelled . | . . . Allies | -11 -10 -10 -------- Run | Yrd Mat Sub Total Allies . | . . . Largest Group . | . . . Highest-Rated Group . | . . . Highest-Rated Ally . | . . . Total Orders . | . . . Ally Attacks . | . . . Total Damage . | . . . Kills . | . . . Allies Corrupted . | . . . Allies Melted . | . . . Intel | -11 -10 -10 ------- Run | Yrd Mat Sub Robot Analysis Total . | . . . Derelict Logs Recovered 1 | . . 1 Drone Launches . | . . . Drone Recoveries . | . . . Exploration | -11 -10 -10 ------------- Run | Yrd Mat Sub Turns Passed 2479 | 116 521 1842 Spaces Moved 1160 | 57 120 983 Core 3 | 3 . . Treads 1157 | 54 120 983 Legs . | . . . Wheels . | . . . Hover . | . . . Flight . | . . . Fastest Speed 50 | 50 160 160 Average Speed 159 | 154 160 160 Slowest Speed 160 | 160 160 160 Overloaded Moves . | . . . Propulsion Burnouts . | . . . Robots Hopped . | . . . Cave-ins Triggered . | . . . Exploration Rate (%) 27 | 4 21 58 Regions Visited 2 Branch Regions 1 Pre-discovered Areas . | . . . Known Exits Taken . | . . . Unknown Exits Taken 2 | 1 1 . Scrap Searched 11 | . . 11 Spaces Dug 2 | . . 2 Terrain Destroyed 95 | . . 95 Melee . | . . . Projectile 6 | . . 6 AOE 89 | . . 89 Terrain Rammed . | . . . Walls Destroyed . | . . . Machines Disabled . | . . . Actions | -11 -10 -10 --------- Run | Yrd Mat Sub Total 1641 | 74 438 1129 Wait 338 | 2 306 30 Move 1158 | 56 119 983 Hop . | . . . Pick Up 19 | 2 4 13 Fast Attach 12 | 6 1 5 Attach 6 | . . 6 Detach 3 | . . 3 Swap 5 | . 1 4 Drop 11 | . 1 10 Fire 89 | 8 6 75 Melee . | . . . Ram . | . . . Kick . | . . . Crush . | . . . Escape Stasis . | . . . Rewire . | . . . Trap . | . . . Miscellaneous . | . . . Route ------- -11/Scrapyard -10/Materials (discovered 2 exits: [*Min] / *Sub) -10/Subcaves (discovered 2 exits: [*Mat x2]) History --------- Turn | Location | Event 4 | -11/Scrapyard | Discovered new exit (range 15) 117 | -11/Scrapyard | Entered Materials 237 | -10/Materials | Discovered new exit (range 13) 310 | -10/Materials | Build established: Mutant 632 | -10/Materials | Discovered new exit (range 5) 638 | -10/Materials | Entered Subcaves 736 | -10/Subcaves | Discovered new exit (range 15) 1006 | -10/Subcaves | Shifting Twisted Machinery released Sub. Optics 1026 | -10/Subcaves | Learned Materials stockpile data 1450 | -10/Subcaves | Shifting Twisted Machinery released Sub. Shrapnel Launcher 1451 | -10/Subcaves | Shifting Twisted Machinery released Shrapnel Trap 1725 | -10/Subcaves | Disturbed a concealed Subdweller 1786 | -10/Subcaves | Lost 5 parts (1p1n3w) 1907 | -10/Subcaves | Discovered new exit (range 9) 1938 | -10/Subcaves | Visited Clippyterm 1942 | -10/Subcaves | Learned Factory trap positions 1988 | -10/Subcaves | Disturbed a concealed Subdweller 1989 | -10/Subcaves | Core integrity fell below 50% 2080 | -10/Subcaves | A swath of the cavern ceiling suddenly collapsed 2462 | -10/Subcaves | Core integrity fell below 20% 2480 | -10/Subcaves | Destroyed by 2S-6PM(R) with Subdweller Beam Cannon Last Messages --------------- 02324_ Found Sub. Machine Gun. 02324_ Found Battle Cannon. 02324_ Found 36 Matter. 02329_ Dropped Lgt. Ion Engine. 02331_ Dropped Lgt. Treads. 02331_ Lgt. Treads crushed and broken. 02331_ Dropped Disposable Heat Sink. 02331_ Disposable Heat Sink crushed and broken. 02332_ Dropped Assault Rifle. 02332_ Assault Rifle crushed and broken. 02332_ Acquired Battle Cannon. 02335_ Acquired Sub. Machine Gun. 02337_ Acquired Sub. Power Source. 02343_ Acquired 10 matter. 02367_ 3R-B0I(u) deconstructs Twisted Machinery. 02431_ UJ-NW6(z): "She is not going to be happy we haven't found any suitable candidates yet." 02476_ Sub. Beam Cannon shoots sparks and powers down. 02476_ 2S-6PM(R) knocked back. Map ----- +----------------------------------------------------+ | ???????# # """#???????????????????????? | | ???????# ##### " #???????????????????? | | ???????## #???## # #??????????????????? | | ???????#" ###??## #### ##??????????????????? | | ???????## ##??##### #??? #??????????????????? | | ????????# #??????## #????#??????????????????? | | ????????# ##???????# ???????????????????????? | | ????????## ##????????# #??????????????????????? | | ????????## ###???????# #??????????????????????? | | ???????## ##??????# ??????????????????????? | | ???????#"" #??????"""###?????????????????????? | | ???????# "" ##?????####???????????????????????? | | ???????# "" ##???????????????????????????????? | | ???????## ""#" ""#???##??????????????????????????? | | ????????# ""# " ### ##?????????????????????????? | | ???????# ## " "#?????????????????????????? | | ???????# ####" "#?#""?????????????????????? | | ???????###??## "##"""?????????????????????? | | ??????????### #### """"""?????????????????????? | | ?????????## #???# """?????????????????????? | | ????????## ####? """?????????????????????? | | ????????# ## """??????????????????????? | | ????????# "###??????????????????????? | | ????????# ""###???????????????????????? | | ????????# ## "### #####???????????????????? | | ????????# ### """### @ ""##???? #???????????? | | ????????# ### "" " #" #???????????? | | ????????# #?# ### R #???????????? | | ????????## #?# #?## % ###???????????? | | ?????????### #?# #??## #????????????? | | ???????????###?## ##????# ##????????????? | | ????????????????########??????######?????????????? | | ?????????????????????????????????????????????????? | | ?????????????????????????????????????????????????? | | ?????????????????????????????????????????????????? | | ?????????????????????????????????????????????????? | | ?????????????????????????????????????????????????? | | ?????????????????????????????????????????????????? | | ?????????????????????????????????????????????????? | | ?????????????????????????????????????????????????? | | ?????????????????????????????????????????????????? | | ?????????????????????????????????????????????????? | | ?????????????????????????????????????????????????? | | ?????????????????????????????????????????????????? | | ?????????????????????????????????????????????????? | | ?????????????????????????????????????????????????? | | ?????????????????????????????????????????????????? | | ?????????????????????????????????????????????????? | | ?????????????????????????????????????????????????? | | ?????????????????????????????????????????????????? | +----------------------------------------------------+ Best States ------------- Heat Dissipation 25 Energy Generation 15 Energy Capacity 250 Matter Stores 300 Matter Capacity 300 Sight Range 16 Terrain Scan Density 10 Armor Coverage 100 Evasion (%) 40 Recoil Reduction 2 Item Schematics ----------------- None Robot Schematics ------------------ None Fabricated ------------ Nothing Alien Tech Used ----------------- None Achievements -------------- None Challenges ------------ None Game ------ Seed ChipEnhancedEngine Manual? 0 Play Time 00:17:26 Cumulative 305.2 hours Start 2024.08.14 @ 18:09:38 End 2024.08.14 @ 18:34:55 Sessions 1 Manual Loads 0 Difficulty Rogue Special Mode None Game No. 305 Rogue 300 Adventurer 5 Explorer 0 Win Type - Total 5 Types 4/0/0/1/0/0/0/0/0 Lore% 68 Gallery% 79 Achievement% 66 Wizard Run 0 Options --------- Layout 1 ASCII 0 Keyboard 0 Movement Mouse Keybinds 0 Fullscreen 1 Font 24/Terminus Map View 50x35 Zoom Use 0% Tactical HUD 1 Map Filters NONE Filters NONE Steam 1 RUN: 46b620e5-0931-4742-9d9c-8085fe4a88a3